[Event "Serbian League Women 2024"]
[Site "Bajina Basta"]
[Date "2024.09.29"]
[Round "3.9"]
[White "Pogorelskikh, Sofia"]
[Black "Maltsevskaya, Aleksandra"]
[Result "1/2-1/2"]
[ECO "C64"]
[WhiteElo "2176"]
[BlackElo "2404"]
[Annotator "RC"]
[PlyCount "98"]
[EventDate "2024.09.26"]
[EventType "team-tourn"]
[EventCountry "SRB"]
[SourceTitle "playchess.com"]
[Source "ChessBase"]
[SourceQuality "1"]
[TimeControl "40/5400+30:1800+30"]

1. e4 {[%emt 0:00:08]} e5 {[%emt 0:00:05]} 2. Nf3 {[%emt 0:00:13]} Nc6 {[%emt 0:00:07]} 3. Bb5 {[%emt 0:00:23]} a6 {[%emt 0:00:06]} 4. Ba4 {[%emt 0:00:25]} Bc5 {[%emt 0:00:08]} 5. c3 {[%emt 0:00:37]} Nge7 {[%emt 0:00:05]} 6. O-O {[%emt 0:00:36]} Ng6 {[%emt 0:00:05]} 7. d4 {[%emt 0:01:13]} Ba7 {[%emt 0:00:05]} 8. Bg5 {[%emt 0:00:43]} f6 {[%emt 0:00:06]} 9. Be3 {[%emt 0:00:24]} O-O {[%emt 0:00:07]} 10. Nbd2 {[%emt 0:00:33]} d6 {[%emt 0:00:57]} 11. Re1 {[%emt 0:00:46]} Kh8 {[%emt 0:00:22]} 12. h3 {[%emt 0:00:27]} exd4 {[%emt 0:00:07]} 13. Nxd4 {[%emt 0:00:52]} Nxd4 {[%emt 0:00:07]} 14. cxd4 {[%emt 0:05:19]} f5 {[%emt 0:00:28]} 15. d5 {[%emt 0:07:01]} Bxe3 {[%emt 0:10:41]} 16. Rxe3 {[%emt 0:00:23]} f4 {[%emt 0:00:15]} 17. Rc3 {[%emt 0:09:06]} b5 {[%emt 0:00:35]} 18. Bc2 {[%emt 0:07:24]} b4 {[%emt 0:06:12]} 19. Rb3 {[%emt 0:01:19]} a5 {[%emt 0:02:58]} 20. a3 {[%emt 0:10:47]} bxa3 {[%emt 0:44:52]} 21. Rbxa3 {[%emt 0:03:35]} Qf6 {[%emt 0:00:06]} 22. b4 {[%emt 0:12:55]} a4 {[%emt 0:03:39]} 23. Bxa4 {[%emt 0:03:30]} Ne5 {[%emt 0:06:18]} 24. Bb5 {[%emt 0:06:30]} Rxa3 {[%emt 0:04:16]} 25. Rxa3 {[%emt 0:00:08]} f3 {[%emt 0:00:11]} 26. Nxf3 {[%emt 0:05:02]} Bxh3 {[%emt 0:00:05]} 27. Qe1 {[%emt 0:07:22]} Bg4 {[%emt 0:07:31]} 28. Nxe5 {[%emt 0:01:07]} Qxe5 {[%emt 0:00:04]} 29. f3 {[%emt 0:07:09]} Bh5 {[%emt 0:00:55]} 30. Qa1 {[%emt 0:01:41]} Qf4 {[%emt 0:03:53]} 31. Ra8 {[%emt 0:00:49]} h6 {[%emt 0:00:08]} 32. Bd7 {[%emt 0:02:33]} Rxa8 {[%emt 0:01:24]} 33. Qxa8+ {[%emt 0:00:06]} Kh7 {[%emt 0:00:05]} 34. Bf5+ {[%emt 0:02:13]} Bg6 {[%emt 0:00:19]} 35. Qf8 {[%emt 0:03:26]} Bxf5 {[%emt 0:00:37]} 36. Qxf5+ {[%emt 0:00:45]} Qxf5 {[%emt 0:00:05]} 37. exf5 {[%emt 0:00:04]} g6 {[%emt 0:04:25]} 38. fxg6+ {[%emt 0:00:19]} Kxg6 {[%emt 0:00:05]} 39. Kf2 {[%emt 0:00:19]} Kf5 {[%emt 0:00:05]} 40. Ke3 {[%emt 0:01:45]} Ke5 {[%emt 0:00:05]} 41. f4+ {[%emt 0:13:37]} Kxd5 {[%emt 0:00:06]} 42. g4 {[%emt 0:00:40]} c6 {[%emt 0:00:53]} 43. Kd3 {[%emt 0:09:51]} Ke6 {[%emt 0:00:06]} 44. Kc4 {[%emt 0:00:48]} Kf6 {[%emt 0:00:54]} 45. b5 {[%emt 0:01:52]} cxb5+ {[%emt 0:07:05]} 46. Kxb5 {[%emt 0:00:12]} Kf7 {[%emt 0:00:28]} 47. Kc4 {[%emt 0:00:13]} Ke6 {[%emt 0:00:23]} 48. Kd4 {[%emt 0:00:08]} Ke7 {[%emt 0:00:36]} 49. Kd5 {[%emt 0:02:08]} Kd7 {[%emt 0:00:06]} 1/2-1/2

[Event "Serbian League Women 2024"]
[Site "Bajina Basta"]
[Date "2024.09.29"]
[Round "3.10"]
[White "Prudnikova, Svetlana"]
[Black "Zherebtsova, Alexandra"]
[Result "1-0"]
[ECO "D36"]
[WhiteElo "2117"]
[BlackElo "2239"]
[Annotator "RC"]
[PlyCount "179"]
[EventDate "2024.09.26"]
[EventType "team-tourn"]
[EventCountry "SRB"]
[SourceTitle "playchess.com"]
[Source "ChessBase"]
[SourceQuality "1"]
[TimeControl "40/5400+30:1800+30"]

1. d4 {[%emt 0:00:30]} Nf6 {[%emt 0:01:13]} 2. c4 {[%emt 0:00:00]} e6 {[%emt 0:00:02]} 3. Nc3 {[%emt 0:00:15]} d5 {[%emt 0:00:10]} 4. cxd5 {[%emt 0:00:28]} exd5 {[%emt 0:00:04]} 5. Bg5 {[%emt 0:00:06]} c6 {[%emt 0:00:28]} 6. Qc2 {[%emt 0:00:58]} Bd6 {[%emt 0:03:00]} 7. e3 {[%emt 0:00:21]} O-O {[%emt 0:00:46]} 8. Bd3 {[%emt 0:00:51]} h6 {[%emt 0:00:17]} 9. Bh4 {[%emt 0:00:20]} Re8 {[%emt 0:00:49]} 10. Nge2 {[%emt 0:03:28]} Nbd7 {[%emt 0:02:36]} 11. h3 {[%emt 0:03:02]} Nf8 {[%emt 0:04:26]} 12. O-O {[%emt 0:03:27]} Be7 {[%emt 0:01:05]} 13. f3 {[%emt 0:02:24]} Nh5 {[%emt 0:20:51]} 14. Bf2 {[%emt 0:04:03]} c5 {[%emt 0:11:23]} 15. Rad1 {[%emt 0:10:41]} c4 {[%emt 0:03:10]} 16. Bf5 {[%emt 0:02:05]} Ne6 {[%emt 0:16:26]} 17. Bxe6 {[%emt 0:12:52]} Bxe6 {[%emt 0:02:10]} 18. e4 {[%emt 0:00:08]} Qd7 {[%emt 0:06:54]} 19. g4 {[%emt 0:11:03]} Nf6 {[%emt 0:00:33]} 20. Ng3 {[%emt 0:07:24]} g5 {[%emt 0:08:19]} 21. e5 {[%emt 0:02:59]} Nh7 {[%emt 0:00:06]} 22. Nf5 {[%emt 0:00:42]} Bf8 {[%emt 0:00:16]} 23. Be3 {[%emt 0:06:26]} f6 {[%emt 0:01:11]} 24. f4 {[%emt 0:00:59]} b5 {[%emt 0:04:58]} 25. Ne2 {[%emt 0:01:36]} Bxf5 {[%emt 0:06:24]} 26. gxf5 {[%emt 0:01:43]} b4 {[%emt 0:00:16]} 27. Ng3 {[%emt 0:02:40]} a5 {[%emt 0:01:58]} 28. Rd2 {[%emt 0:06:58]} Qb5 {[%emt 0:00:48]} 29. Rg2 {[%emt 0:01:09]} Kf7 {[%emt 0:02:02]} 30. Qe2 {[%emt 0:02:24]} Ke7 {[%emt 0:00:17]} 31. fxg5 {[%emt 0:00:54]} Nxg5 {[%emt 0:01:02]} 32. Bxg5 {[%emt 0:02:17]} hxg5 {[%emt 0:00:21]} 33. Nh5 {[%emt 0:00:52]} fxe5 {[%emt 0:00:47]} 34. dxe5 {[%emt 0:01:24]} Kd8 {[%emt 0:01:37]} 35. e6 {[%emt 0:02:40]} Bc5+ {[%emt 0:00:38]} 36. Kh1 {[%emt 0:00:01]} Qc6 {[%emt 0:00:11]} 37. Rd1 {[%emt 0:03:34]} d4 {[%emt 0:00:41]} 38. Qxc4 {[%emt 0:00:37]} Qf3 {[%emt 0:00:15]} 39. Rxd4+ {[%emt 0:03:54]} Bxd4 {[%emt 0:00:10]} 40. Qxd4+ {[%emt 0:00:01]} Kc7 {[%emt 0:00:18]} 41. Qc5+ {[%emt 0:30:18]} Kb7 {[%emt 0:30:44]} 42. Qb5+ {[%emt 0:01:40]} Kc7 {[%emt 0:00:00]} 43. Kh2 {[%emt 0:00:00]} Qd1 {[%emt 0:00:00]} 44. Qc5+ {[%emt 0:00:00]} Kb7 {[%emt 0:00:00]} 45. Rc2 {[%emt 0:00:00]} Ra6 {[%emt 0:00:00]} 46. Nf6 {[%emt 0:00:00]} Rh8 {[%emt 0:00:00]} 47. Qb5+ {[%emt 0:00:00]} Rb6 {[%emt 0:00:00]} 48. Qd5+ {[%emt 0:00:00]} Qxd5 {[%emt 0:00:00]} 49. Nxd5 {[%emt 0:00:00]} Rd6 {[%emt 0:01:43]} 50. Rc7+ {[%emt 0:00:00]} Kb8 {[%emt 0:00:35]} 51. Rc5 {[%emt 0:00:00]} g4 {[%emt 0:02:22]} 52. e7 {[%emt 0:00:00]} gxh3 {[%emt 0:00:31]} 53. f6 {[%emt 0:01:13]} Re6 {[%emt 0:00:05]} 54. f7 {[%emt 0:00:42]} Re2+ {[%emt 0:00:11]} 55. Kg3 {[%emt 0:00:13]} Rxe7 {[%emt 0:01:10]} 56. Nxe7 {[%emt 0:00:05]} h2 {[%emt 0:00:14]} 57. Ng8 {[%emt 0:01:55]} Rh3+ {[%emt 0:01:10]} 58. Kg4 {[%emt 0:00:31]} Rf3 {[%emt 0:00:57]} 59. Rf5 {[%emt 0:00:45]} Rxf5 {[%emt 0:00:32]} 60. Kxf5 {[%emt 0:00:01]} h1=Q {[%emt 0:00:09]} 61. f8=Q+ {[%emt 0:00:10]} Kb7 {[%emt 0:00:29]} 62. Qe7+ {[%emt 0:01:20]} Kb6 {[%emt 0:00:34]} 63. Qe6+ {[%emt 0:00:40]} Kb5 {[%emt 0:00:29]} 64. Qe5+ {[%emt 0:00:17]} Kb6 {[%emt 0:00:17]} 65. Nf6 {[%emt 0:00:18]} Qb1+ {[%emt 0:00:49]} 66. Ke6 {[%emt 0:01:49]} Qxa2+ {[%emt 0:00:19]} 67. Kd6 {[%emt 0:00:11]} Qc4 {[%emt 0:00:45]} 68. Nd5+ {[%emt 0:01:45]} Ka6 {[%emt 0:00:45]} 69. Qe8 {[%emt 0:00:24]} Ka7 {[%emt 0:00:38]} 70. Qd7+ {[%emt 0:00:20]} Ka6 {[%emt 0:00:25]} 71. Qc6+ {[%emt 0:00:58]} Qxc6+ {[%emt 0:00:14]} 72. Kxc6 {[%emt 0:00:02]} a4 {[%emt 0:00:17]} 73. Nxb4+ {[%emt 0:00:05]} Ka5 {[%emt 0:00:08]} 74. Nc2 {[%emt 0:01:02]} a3 {[%emt 0:00:18]} 75. bxa3 {[%emt 0:00:03]} Ka6 {[%emt 0:00:11]} 76. Kc5 {[%emt 0:00:09]} Ka5 {[%emt 0:00:08]} 77. Kc4 {[%emt 0:00:06]} Ka4 {[%emt 0:00:10]} 78. Kc3 {[%emt 0:00:05]} Kb5 {[%emt 0:00:06]} 79. Kb3 {[%emt 0:00:02]} Ka5 {[%emt 0:00:02]} 80. Nd4 {[%emt 0:00:06]} Kb6 {[%emt 0:00:10]} 81. Kb4 {[%emt 0:00:05]} Ka6 {[%emt 0:00:05]} 82. a4 {[%emt 0:00:04]} Kb6 {[%emt 0:00:07]} 83. a5+ {[%emt 0:00:07]} Ka6 {[%emt 0:00:04]} 84. Nc6 {[%emt 0:00:29]} Kb7 {[%emt 0:00:05]} 85. Kb5 {[%emt 0:00:04]} Ka8 {[%emt 0:00:04]} 86. Ne7 {[%emt 0:00:52]} Kb7 {[%emt 0:00:05]} 87. a6+ {[%emt 0:00:21]} Kc7 {[%emt 0:00:47]} 88. Nd5+ {[%emt 0:00:10]} Kc8 {[%emt 0:00:44]} 89. Kb6 {[%emt 0:00:07]} Kb8 {[%emt 0:00:05]} 90. a7+ {[%emt 0:00:11]} 1-0

[Event "Serbian League Women 2024"]
[Site "Bajina Basta"]
[Date "2024.09.29"]
[Round "3.11"]
[White "Ibrahimova, Sabina"]
[Black "Drljevic, Ljilja"]
[Result "1-0"]
[ECO "E91"]
[WhiteElo "2199"]
[BlackElo "2102"]
[Annotator "RC"]
[PlyCount "57"]
[EventDate "2024.09.26"]
[EventType "team-tourn"]
[EventCountry "SRB"]
[SourceTitle "playchess.com"]
[Source "ChessBase"]
[SourceQuality "1"]
[TimeControl "40/5400+30:1800+30"]

1. c4 {[%emt 0:00:42]} g6 {[%emt 0:00:20]} 2. Nc3 {[%emt 0:02:26]} Bg7 {[%emt 0:00:03]} 3. d4 {[%emt 0:03:07]} d6 {[%emt 0:04:30]} 4. Nf3 {[%emt 0:00:55]} Nf6 {[%emt 0:00:38]} 5. e4 {[%emt 0:00:25]} O-O {[%emt 0:00:06]} 6. Be2 {[%emt 0:00:10]} c6 {[%emt 0:07:15]} 7. O-O {[%emt 0:00:30]} Na6 {[%emt 0:02:17]} 8. h3 {[%emt 0:08:53]} e5 {[%emt 0:00:55]} 9. dxe5 {[%emt 0:13:56]} dxe5 {[%emt 0:00:07]} 10. Qc2 {[%emt 0:00:12]} Nh5 {[%emt 0:07:45]} 11. Bg5 {[%emt 0:02:31]} Qc7 {[%emt 0:01:24]} 12. Be3 {[%emt 0:09:40]} Nf4 {[%emt 0:05:27]} 13. c5 {[%emt 0:00:42]} Nxe2+ {[%emt 0:02:16]} 14. Qxe2 {[%emt 0:04:11]} Qe7 {[%emt 0:04:20]} 15. Rac1 {[%emt 0:00:52]} f5 {[%emt 0:09:25]} 16. exf5 {[%emt 0:07:36]} gxf5 {[%emt 0:04:25]} 17. Bf4 {[%emt 0:10:21]} Nxc5 {[%emt 0:23:40]} 18. Nxe5 {[%emt 0:09:50]} Ne6 {[%emt 0:06:23]} 19. Nf3 {[%emt 0:06:50]} Qb4 {[%emt 0:03:54]} 20. Be5 {[%emt 0:05:04]} Bh6 {[%emt 0:05:27]} 21. Rcd1 {[%emt 0:08:14]} Re8 {[%emt 0:02:36]} 22. Bd6 {[%emt 0:02:10]} Qa5 {[%emt 0:02:37]} 23. Rfe1 {[%emt 0:00:35]} b5 {[%emt 0:02:22]} 24. Nd4 {[%emt 0:01:34]} b4 {[%emt 0:03:04]} 25. Qh5 {[%emt 0:00:22]} Bd7 {[%emt 0:01:07]} 26. Nxf5 {[%emt 0:00:59]} Kh8 {[%emt 0:00:11]} 27. Be5+ {[%emt 0:00:34]} Bg7 {[%emt 0:00:52]} 28. Nxg7 {[%emt 0:00:21]} Nxg7 {[%emt 0:00:22]} 29. Bxg7+ {[%emt 0:00:07]} 1-0

[Event "Serbian League Women 2024"]
[Site "Bajina Basta"]
[Date "2024.09.29"]
[Round "3.12"]
[White "Radenkovic, Mila"]
[Black "Djukic, Sandra"]
[Result "1/2-1/2"]
[ECO "B48"]
[WhiteElo "1910"]
[BlackElo "2126"]
[Annotator "RC"]
[PlyCount "83"]
[EventDate "2024.09.26"]
[EventType "team-tourn"]
[EventCountry "SRB"]
[SourceTitle "playchess.com"]
[Source "ChessBase"]
[SourceQuality "1"]
[TimeControl "40/5400+30:1800+30"]

1. e4 {[%emt 0:00:13]} c5 {[%emt 0:00:05]} 2. Nf3 {[%emt 0:00:21]} Nc6 {[%emt 0:00:11]} 3. d4 {[%emt 0:02:55]} cxd4 {[%emt 0:00:07]} 4. Nxd4 {[%emt 0:00:13]} Qc7 {[%emt 0:00:06]} 5. Nc3 {[%emt 0:03:47]} e6 {[%emt 0:00:06]} 6. a3 {[%emt 0:03:16]} a6 {[%emt 0:00:07]} 7. Be3 {[%emt 0:03:45]} Nf6 {[%emt 0:00:08]} 8. Nxc6 {[%emt 0:08:46]} bxc6 {[%emt 0:02:24]} 9. Bc4 {[%emt 0:01:20]} Bd6 {[%emt 0:09:04]} 10. h3 {[%emt 0:07:08]} Be5 {[%emt 0:01:41]} 11. O-O {[%emt 0:03:54]} O-O {[%emt 0:05:26]} 12. Bd4 {[%emt 0:21:02]} Qd6 {[%emt 0:33:48]} 13. Bxe5 {[%emt 0:02:04]} Qxe5 {[%emt 0:00:54]} 14. Re1 {[%emt 0:00:39]} Rb8 {[%emt 0:12:41]} 15. Bb3 {[%emt 0:02:30]} c5 {[%emt 0:04:07]} 16. Qd3 {[%emt 0:02:17]} Bb7 {[%emt 0:02:15]} 17. Rad1 {[%emt 0:00:26]} Rfd8 {[%emt 0:02:39]} 18. Qd6 {[%emt 0:06:42]} Qh5 {[%emt 0:01:38]} 19. Re3 {[%emt 0:06:17]} Bc6 {[%emt 0:12:10]} 20. Rde1 {[%emt 0:10:37]} Ne8 {[%emt 0:01:05]} 21. Qe7 {[%emt 0:00:59]} Qe5 {[%emt 0:04:14]} 22. f4 {[%emt 0:04:30]} Qd6 {[%emt 0:00:44]} 23. Qh4 {[%emt 0:01:19]} Qd4 {[%emt 0:02:16]} 24. Kh1 {[%emt 0:01:23]} c4 {[%emt 0:00:53]} 25. Ba4 {[%emt 0:02:30]} Bxa4 {[%emt 0:00:06]} 26. Nxa4 {[%emt 0:00:03]} Rdc8 {[%emt 0:03:00]} 27. Qg3 {[%emt 0:03:09]} Nf6 {[%emt 0:01:16]} 28. Qf3 {[%emt 0:00:48]} d5 {[%emt 0:00:26]} 29. Rd1 {[%emt 0:01:29]} dxe4 {[%emt 0:00:35]} 30. Rxd4 {[%emt 0:00:27]} exf3 {[%emt 0:00:03]} 31. Rxf3 {[%emt 0:00:05]} Nd5 {[%emt 0:01:05]} 32. f5 {[%emt 0:00:22]} Nb6 {[%emt 0:00:35]} 33. Nc3 {[%emt 0:01:04]} Rd8 {[%emt 0:00:21]} 34. Rxd8+ {[%emt 0:00:14]} Rxd8 {[%emt 0:00:01]} 35. fxe6 {[%emt 0:00:06]} fxe6 {[%emt 0:00:02]} 36. Ne4 {[%emt 0:01:02]} Rd1+ {[%emt 0:00:20]} 37. Kh2 {[%emt 0:00:03]} Rc1 {[%emt 0:00:45]} 38. Rf2 {[%emt 0:00:36]} Nd5 {[%emt 0:00:36]} 39. Nc5 {[%emt 0:00:26]} Ne3 {[%emt 0:00:27]} 40. Nxe6 {[%emt 0:00:52]} Nf1+ {[%emt 0:00:28]} 41. Kg1 {[%emt 0:30:05]} Ne3+ {[%emt 0:30:14]} 42. Kh2 {[%emt 0:00:05]} 1/2-1/2

[Event "Serbian League Women 2024"]
[Site "Bajina Basta"]
[Date "2024.09.29"]
[Round "3.13"]
[White "Osmak, Yuliia"]
[Black "Unuk, Laura"]
[Result "1/2-1/2"]
[ECO "D33"]
[WhiteElo "2471"]
[BlackElo "2316"]
[Annotator "TA"]
[PlyCount "69"]
[EventDate "2024.09.26"]
[EventType "team-tourn"]
[EventCountry "SRB"]
[SourceTitle "playchess.com"]
[Source "ChessBase"]
[SourceQuality "1"]
[TimeControl "40/5400+30:1800+30"]

{[%evp 20,69,29,9,29,25,15,15,27,24,40,41,76,0,6,0,0,0,0,0,0,-8,-9,-12,-21,-17,-13,-10,-4,-12,-4,-7,-9,-17,-1,-12,0,-12,0,-11,0,0,0,-16,-6,-27,-17,-18,-20,-12,-16,-36]} 1. c4 {[%emt 0:00:04]} e6 {[%emt 0:00:24]} 2. Nc3 {[%emt 0:00:06]} d5 {[%emt 0:00:03]} 3. d4 {[%emt 0:00:03]} c5 {[%emt 0:00:52]} 4. cxd5 {[%emt 0:00:35]} exd5 {[%emt 0:00:06]} 5. Nf3 {[%emt 0:00:18]} Nc6 {[%emt 0:00:26]} 6. g3 {[%emt 0:15:15]} Nf6 {[%emt 0:01:19]} 7. Bg2 {[%emt 0:00:06]} cxd4 {[%emt 0:00:31]} 8. Nxd4 {[%emt 0:00:05]} Bc5 {[%emt 0:00:33]} 9. Nxc6 {[%emt 0:05:59]} bxc6 {[%emt 0:00:06]} 10. O-O {[%emt 0:00:03]} O-O {[%emt 0:03:50]} 11. Qc2 {[%emt 0:00:10][%cal Oc3d5]} Bb6 {[%emt 0:07:22]} 12. Na4 {[%emt 0:00:16][%cal Oa4b6]} Bd7 {[%emt 0:03:15]} 13. Nxb6 {[%emt 0:06:34]} axb6 {[%emt 0:01:19]} 14. a4 {[%emt 0:00:05]} Re8 {[%emt 0:02:03]} 15. b4 {[%emt 0:05:20]} b5 {[%emt 0:22:58]} 16. e3 {[%emt 0:15:19]} (16. a5 $16) 16... Qe7 $11 {[%emt 0:05:38]} 17. Bd2 {[%emt 0:08:52]} bxa4 {[%emt 0:00:07]} 18. Rxa4 {[%emt 0:00:20]} Rxa4 {[%emt 0:08:19]} 19. Qxa4 {[%emt 0:01:47]} Ne4 {[%emt 0:00:06]} 20. Qa2 {[%emt 0:03:24]} h5 {[%emt 0:07:35]} 21. b5 {[%emt 0:08:50]} cxb5 {[%emt 0:07:51]} 22. Qxd5 {[%emt 0:00:10] [#] Bxe4 would now be deadly.} Nxd2 {[%emt 0:01:10]} 23. Qxd2 {[%emt 0:00:04]} Be6 {[%emt 0:02:03]} 24. Rb1 {[%emt 0:02:40]} Bc4 {[%emt 0:01:54]} 25. h4 {[%emt 0:08:46]} Rd8 {[%emt 0:02:38]} 26. Qa5 {[%emt 0:00:25]} Rb8 {[%emt 0:07:38]} 27. Qc3 {[%emt 0:03:01]} Qe6 {[%emt 0:00:35]} 28. Qb4 {[%emt 0:01:14]} Rd8 {[%emt 0:01:47]} 29. Qa5 {[%emt 0:03:56]} Rb8 {[%emt 0:04:33]} 30. Qc7 {[%emt 0:03:04]} Rc8 {[%emt 0:01:27]} 31. Qa5 {[%emt 0:02:06]} Qd6 {[%emt 0:03:09]} 32. Bb7 {[%emt 0:04:10]} Rb8 {[%emt 0:00:51]} 33. Bf3 {[%emt 0:01:05] The position is equal.} g6 {[%emt 0:02:57]} 34. Qc3 {[%emt 0:00:43]} Rd8 {[%emt 0:00:15]} 35. Qa5 {[%emt 0:02:32] Weighted Error Value: White=0.11 (very precise) /Black=0.06 (flawless) .  Mistake:       	White=1     	---        Inaccurate:     	---       	Black=1      OK:         	White=8     	Black=10} 1/2-1/2

[Event "Serbian League Women 2024"]
[Site "Bajina Basta"]
[Date "2024.09.29"]
[Round "3.14"]
[White "Lach, Aleksandra"]
[Black "Roebers, Eline"]
[Result "1/2-1/2"]
[ECO "C02"]
[WhiteElo "2278"]
[BlackElo "2340"]
[Annotator "RC"]
[PlyCount "102"]
[EventDate "2024.09.26"]
[EventType "team-tourn"]
[EventCountry "SRB"]
[SourceTitle "playchess.com"]
[Source "ChessBase"]
[SourceQuality "1"]
[TimeControl "40/5400+30:1800+30"]

1. e4 {[%emt 0:00:39]} e6 {[%emt 0:00:06]} 2. d4 {[%emt 0:00:23]} d5 {[%emt 0:00:04]} 3. e5 {[%emt 0:00:16]} c5 {[%emt 0:00:05]} 4. c3 {[%emt 0:00:18]} Nc6 {[%emt 0:00:06]} 5. Nf3 {[%emt 0:00:10]} Qb6 {[%emt 0:00:05]} 6. Be2 {[%emt 0:00:57]} Nh6 {[%emt 0:03:32]} 7. Bxh6 {[%emt 0:24:54]} gxh6 {[%emt 0:03:04]} 8. Qd2 {[%emt 0:11:00]} Bg7 {[%emt 0:10:42]} 9. O-O {[%emt 0:06:47]} Bd7 {[%emt 0:01:52]} 10. Na3 {[%emt 0:07:02]} cxd4 {[%emt 0:05:05]} 11. cxd4 {[%emt 0:00:17]} O-O {[%emt 0:00:05]} 12. Nc2 {[%emt 0:05:14]} f6 {[%emt 0:03:13]} 13. exf6 {[%emt 0:04:19]} Rxf6 {[%emt 0:00:06]} 14. b4 {[%emt 0:00:13]} Raf8 {[%emt 0:20:12]} 15. b5 {[%emt 0:01:27]} Ne7 {[%emt 0:00:06]} 16. Ne5 {[%emt 0:06:06]} Be8 {[%emt 0:00:06]} 17. a4 {[%emt 0:01:06]} Ng6 {[%emt 0:08:18]} 18. Ng4 {[%emt 0:04:28]} Rf4 {[%emt 0:02:26]} 19. a5 {[%emt 0:02:01]} Qd8 {[%emt 0:01:19]} 20. g3 {[%emt 0:04:30]} h5 {[%emt 0:00:52]} 21. Nge3 {[%emt 0:06:07]} R4f6 {[%emt 0:01:37]} 22. Bxh5 {[%emt 0:04:11]} Nf4 {[%emt 0:08:39]} 23. Bg4 {[%emt 0:02:12]} h5 {[%emt 0:01:04]} 24. gxf4 {[%emt 0:00:46]} hxg4 {[%emt 0:00:06]} 25. Ng2 {[%emt 0:00:19]} Bh6 {[%emt 0:02:09]} 26. Qe2 {[%emt 0:00:19]} Rg6 {[%emt 0:04:16]} 27. a6 {[%emt 0:00:43]} b6 {[%emt 0:01:22]} 28. Ra3 {[%emt 0:01:42]} Bxf4 {[%emt 0:00:50]} 29. Nxf4 {[%emt 0:00:11]} Rxf4 {[%emt 0:00:05]} 30. Rg3 {[%emt 0:00:36]} Qh4 {[%emt 0:02:04]} 31. Ne3 {[%emt 0:01:24]} Re4 {[%emt 0:06:17]} 32. Kh1 {[%emt 0:02:26]} Kh7 {[%emt 0:02:06]} 33. Rfg1 {[%emt 0:01:42]} Rh6 {[%emt 0:01:19]} 34. h3 {[%emt 0:00:52]} Bg6 {[%emt 0:00:41]} 35. Qc2 {[%emt 0:01:28]} Rf4 {[%emt 0:00:49]} 36. Qc7+ {[%emt 0:00:18]} Rf7 {[%emt 0:00:05]} 37. Rc1 {[%emt 0:00:55]} gxh3 {[%emt 0:11:47]} 38. Ng4 {[%emt 0:00:19]} Rh5 {[%emt 0:01:29]} 39. Ne5 {[%emt 0:00:45]} Rhf5 {[%emt 0:01:15]} 40. Nxf7 {[%emt 0:00:31]} Rxf7 {[%emt 0:00:08]} 41. Kh2 {[%emt 0:11:25]} Rxc7 {[%emt 0:05:22]} 42. Rxc7+ {[%emt 0:01:38]} Kg8 {[%emt 0:00:02]} 43. Rxg6+ {[%emt 0:10:01]} Kf8 {[%emt 0:01:38]} 44. Rg3 {[%emt 0:00:28]} Qf4 {[%emt 0:00:19]} 45. Rc8+ {[%emt 0:02:15]} Ke7 {[%emt 0:00:52]} 46. Kxh3 {[%emt 0:01:11]} Qf5+ {[%emt 0:01:12]} 47. Kg2 {[%emt 0:00:54]} Qe4+ {[%emt 0:00:16]} 48. f3 {[%emt 0:01:42]} Qxd4 {[%emt 0:01:40]} 49. Rc7+ {[%emt 0:01:45]} Kd6 {[%emt 0:00:46]} 50. Rxa7 {[%emt 0:00:56]} Qd2+ {[%emt 0:00:49]} 51. Kh3 {[%emt 0:00:40]} Qh6+ {[%emt 0:00:04]} 1/2-1/2

[Event "Serbian League Women 2024"]
[Site "Bajina Basta"]
[Date "2024.09.29"]
[Round "3.15"]
[White "Maksimovic, Suzana"]
[Black "Bojicic, Andjela"]
[Result "1/2-1/2"]
[ECO "A26"]
[WhiteElo "2052"]
[BlackElo "2071"]
[Annotator "RC"]
[PlyCount "73"]
[EventDate "2024.09.26"]
[EventType "team-tourn"]
[EventCountry "SRB"]
[SourceTitle "playchess.com"]
[Source "ChessBase"]
[SourceQuality "1"]
[TimeControl "40/5400+30:1800+30"]

1. Nf3 {[%emt 0:00:11]} Nf6 {[%emt 0:00:11]} 2. c4 {[%emt 0:00:22]} g6 {[%emt 0:00:10]} 3. Nc3 {[%emt 0:01:50]} Bg7 {[%emt 0:00:04]} 4. g3 {[%emt 0:01:29]} O-O {[%emt 0:00:09]} 5. Bg2 {[%emt 0:00:04]} d6 {[%emt 0:00:06]} 6. O-O {[%emt 0:00:35]} Nc6 {[%emt 0:00:31]} 7. d3 {[%emt 0:00:37]} e5 {[%emt 0:00:08]} 8. Rb1 {[%emt 0:00:26]} a5 {[%emt 0:00:05]} 9. b3 {[%emt 0:00:33]} Re8 {[%emt 0:02:58]} 10. Bb2 {[%emt 0:01:24]} h6 {[%emt 0:02:03]} 11. e4 {[%emt 0:05:28]} Nh7 {[%emt 0:04:20]} 12. Nd5 {[%emt 0:04:06]} Be6 {[%emt 0:03:15]} 13. Ne1 {[%emt 0:11:29]} f5 {[%emt 0:04:07]} 14. f4 {[%emt 0:01:01]} Qd7 {[%emt 0:03:22]} 15. Qd2 {[%emt 0:04:51]} Rf8 {[%emt 0:04:50]} 16. Nf3 {[%emt 0:12:01]} fxe4 {[%emt 0:18:22]} 17. dxe4 {[%emt 0:00:02]} exf4 {[%emt 0:11:29]} 18. Nxf4 {[%emt 0:10:03]} g5 {[%emt 0:03:41]} 19. Nxe6 {[%emt 0:09:23]} Qxe6 {[%emt 0:00:34]} 20. e5 {[%emt 0:03:02]} Kh8 {[%emt 0:05:15]} 21. exd6 {[%emt 0:01:05]} Qxd6 {[%emt 0:01:56]} 22. Qxd6 {[%emt 0:03:14]} cxd6 {[%emt 0:00:14]} 23. Bxg7+ {[%emt 0:02:00]} Kxg7 {[%emt 0:00:45]} 24. Rbd1 {[%emt 0:00:03]} Rad8 {[%emt 0:02:39]} 25. Rfe1 {[%emt 0:10:01]} Nf6 {[%emt 0:07:11]} 26. Nd4 {[%emt 0:01:28]} Nxd4 {[%emt 0:01:53]} 27. Rxd4 {[%emt 0:00:04]} Rf7 {[%emt 0:06:48]} 28. a3 {[%emt 0:07:31]} Rc7 {[%emt 0:02:08]} 29. Re6 {[%emt 0:00:30]} Rcd7 {[%emt 0:02:26]} 30. b4 {[%emt 0:01:43]} axb4 {[%emt 0:00:50]} 31. axb4 {[%emt 0:00:03]} Kf7 {[%emt 0:01:53]} 32. Re1 {[%emt 0:00:32]} Ra8 {[%emt 0:07:24]} 33. Red1 {[%emt 0:03:28]} Rad8 {[%emt 0:03:25]} 34. Bh3 {[%emt 0:01:33]} Rc7 {[%emt 0:00:32]} 35. c5 {[%emt 0:04:19]} d5 {[%emt 0:00:42]} 36. Bg2 {[%emt 0:00:14]} Rcd7 {[%emt 0:00:18]} 37. Kf2 {[%emt 0:01:14]} 1/2-1/2